Cogmind - Beta 17 @@@ ROGUE MODE // 2026.07.16 @ 07:24:57 // Winter2019/RPGLIKE Player: Gallgagger Result: Self-destructed Performance ------------- Evolutions (1) 500 Regions Visited (6) 1200 Robots Destroyed (1) 5 Value Destroyed (7) 7 Prototype IDs (2) 40 Alien Tech Used (0) 0 Bonus (500) 500 TOTAL SCORE: 2252 Bonus ------- Pacifist 200 Aligned with FarCom 300 Cogmind --------- Core Integrity 57/600 Matter 136/300 Energy 100/100 System Corruption 0% Temperature Cool (0) Movement Flying (40) Location -8/Mines Parts ------- > --- POWER (1) -------- (None) > --- PROPULSION (2) --- Flight Unit > --- UTILITY (1) ------ Modified TNC > --- WEAPON (1) ------- Longsword +1 > --- INVENTORY (0) ---- (None) Peak State ------------ > --- POWER ------------ (None) > --- PROPULSION ------- Flight Unit Flight Unit > --- UTILITY ---------- Modified TNC > --- WEAPON ----------- Longsword +1 > --- INVENTORY -------- (None) [Rating: 16] Favorites ----------- Power None Propulsion Flight Unit Flight Unit Flight Unit Utility Modified TNC Processor Modified TNC Weapon Makeshift Axe Slashing Weapon Makeshift Axe Build | -11 -10 -10 -9 -9 -9 -8 ------- Run | Yrd Mat Min Mat Min Exi Min Slots Evolved 1 | . . 1 . . . . Power . | . . . . . . . Propulsion 1 | . . 1 . . . . Utility . | . . . . . . . Weapon . | . . . . . . . Parts Attached 5 | . . 2 . 1 2 . Power . | . . . . . . . Engine . | . . . . . . . Core . | . . . . . . . Reactor . | . . . . . . . Propulsion 2 | . . 2 . . . . Treads . | . . . . . . . Leg . | . . . . . . . Wheel . | . . . . . . . Hover . | . . . . . . . Flight 2 | . . 2 . . . . Utility 1 | . . . . . 1 . Device . | . . . . . . . Storage . | . . . . . . . Processor 1 | . . . . . 1 . Hackware . | . . . . . . . Protection . | . . . . . . . Artifact . | . . . . . . . Weapon 2 | . . . . 1 1 . Energy Gun . | . . . . . . . Energy Cannon . | . . . . . . . Ballistic Gun . | . . . . . . . Ballistic Cannon . | . . . . . . . Launcher . | . . . . . . . Special Weapon . | . . . . . . . Impact Weapon . | . . . . . . . Slashing Weapon 2 | . . . . 1 1 . Piercing Weapon . | . . . . . . . Special Melee Weapon . | . . . . . . . Unidentified Prototypes 2 | . . . . . 2 . Parts Lost 1 | . . . . . 1 . Power . | . . . . . . . Propulsion 1 | . . . . . 1 . Utility . | . . . . . . . Weapon . | . . . . . . . Highest Loss Streak 1 | . . . . . 1 . To Critical Strikes . | . . . . . . . Average Backups . | . . . . . . . Power . | . . . . . . . Propulsion . | . . . . . . . Utility . | . . . . . . . Weapon . | . . . . . . . Tool/Special . | . . . . . . . Unused Backups . | . . . . . . . Power . | . . . . . . . Propulsion . | . . . . . . . Utility . | . . . . . . . Weapon . | . . . . . . . Tool/Special . | . . . . . . . Average Slot Usage (%) 41 | . . 23 40 46 64 60 Flight 31 | . . 23 40 40 36 20 Processor 2 | . . . . . 8 20 Slashing Weapon 7 | . . . . 6 20 20 Peak Build Rating 16 | . . 2 2 6 16 15 Average Rating 4 | . . 1 2 3 10 15 On Entrance 3 | . . . 2 2 6 15 Avg Prop Armor Cover (%) . | . . . . . . . Naked Turns 68 | . 39 29 . . . . Heaviest Build 3 | . . . . 3 3 3 Greatest Support 8 | 3 3 8 8 8 8 4 Greatest Overweight (x) . | . . . . . . . Average Overweight (x) . | . . . . . . . Largest Inventory Capacity . | . . . . . . . Average Capacity . | . . . . . . . Most Carried . | . . . . . . . Average Carried . | . . . . . . . Final Capacity . | . . . . . . . Final Carried . | . . . . . . . Class Distribution -------------------- 100% | Mutant Dominant Class ---------------- Mutant | -10/Materials Mutant | -10/Mines Mutant | -9/Materials Mutant | -9/Mines Mutant | -9/Exiles Mutant | -8/Mines Resources | -11 -10 -10 -9 -9 -9 -8 ----------- Run | Yrd Mat Min Mat Min Exi Min Matter Collected 81 | 37 . . . 34 . 10 Remotely . | . . . . . . . Salvage Created 10 | . . . . . . 10 Parts 3 | . . . . . . 3 Haulers Intercepted . | . . . . . . . Recyclers Shooed . | . . . . . . . Parts Field Recycled . | . . . . . . . Retrieved Matter . | . . . . . . . Parts Self-Destructed . | . . . . . . . Prevented . | . . . . . . . Parts Restored . | . . . . . . . Kills | -11 -10 -10 -9 -9 -9 -8 ------- Run | Yrd Mat Min Mat Min Exi Min Combat Hostiles Destroyed . | . . . . . . . Classes Destroyed 1 | . . . . . . 1 Tunneler 1 | . . . . . . 1 Best Kill Streak 1 | . . . . . . 1 Combat Bots Only . | . . . . . . . Max Kills in Single Turn 1 | . . . . . . 1 Gunslinging . | . . . . . . . Exploded . | . . . . . . . Melee . | . . . . . . . Uniques/NPCs Destroyed . | . . . . . . . Combat | -11 -10 -10 -9 -9 -9 -8 -------- Run | Yrd Mat Min Mat Min Exi Min Hostile Shots Fired 98 | . 7 52 37 . 2 . Missed 50 | . 4 23 23 . . . Hits 48 | . 3 29 14 . 2 . Projectile 48 | . 3 29 14 . 2 . Critical Strikes 1 | . . . 1 . . . Damage Taken 579 | . 58 242 182 . 97 . Core 543 | . 58 230 167 . 88 . Absorbed by Shields . | . . . . . . . Redirected to Core 125 | . . 37 53 . 35 . Core Remaining (%) 76 | 100 . 52 . . . . Volleys Fired . | . . . . . . . Largest . | . . . . . . . Hottest . | . . . . . . . Shots Fired . | . . . . . . . Gun . | . . . . . . . Cannon . | . . . . . . . Launcher . | . . . . . . . Special . | . . . . . . . Kinetic . | . . . . . . . Thermal . | . . . . . . . Explosive . | . . . . . . . Electromagnetic . | . . . . . . . Robot Hit Streak . | . . . . . . . Robot Miss Streak . | . . . . . . . Penetration Max . | . . . . . . . Secondary Targets . | . . . . . . . Shots Hit Robots 1 | . . . . . . 1 Core Hits 1 | . . . . . . 1 Critical Kills . | . . . . . . . Critical Parts Destroyed . | . . . . . . . Critical Strikes . | . . . . . . . Melee Attacks 2 | . . . . . 1 1 Impact . | . . . . . . . Slashing 2 | . . . . . 1 1 Piercing . | . . . . . . . Sneak Attacks 1 | . . . . . . 1 Combat Hostiles . | . . . . . . . Follow-up Attacks . | . . . . . . . Damage Inflicted 75 | . . . . . . 75 Guns . | . . . . . . . Cannons . | . . . . . . . Explosions . | . . . . . . . Melee 75 | . . . . . . 75 Ramming . | . . . . . . . Kinetic . | . . . . . . . Thermal . | . . . . . . . Explosive . | . . . . . . . Electromagnetic . | . . . . . . . Impact . | . . . . . . . Slashing 75 | . . . . . . 75 Piercing . | . . . . . . . Highest Corruption . | . . . . . . . Average Corruption . | . . . . . . . Corruption Purged . | . . . . . . . Corruption Blocked . | . . . . . . . Overload Shots . | . . . . . . . Overflow Damage . | . . . . . . . Projectiles . | . . . . . . . Explosions . | . . . . . . . Melee . | . . . . . . . Knockbacks . | . . . . . . . Impact . | . . . . . . . Kinetic . | . . . . . . . Secondary . | . . . . . . . Self-Inflicted Damage . | . . . . . . . Shots . | . . . . . . . Rammed . | . . . . . . . Targets Rammed . | . . . . . . . Kicked . | . . . . . . . Crushed . | . . . . . . . Highest Temperature 8 | . . . 8 . . . Average Temperature 8 | . . . 8 . . . Received Heat Transfer 96 | . . . 96 . . . Siege Activations . | . . . . . . . Martial Activations . | . . . . . . . Shielding Activations . | . . . . . . . Robots Disrupted . | . . . . . . . Combat Hostiles . | . . . . . . . Robots Corrupted . | . . . . . . . Combat Hostiles . | . . . . . . . Parts Fried . | . . . . . . . Impact Corruptions . | . . . . . . . Robots Melted . | . . . . . . . Combat Hostiles . | . . . . . . . Parts Melted . | . . . . . . . Heat Transferred . | . . . . . . . Parts Sabotaged . | . . . . . . . Parts Stolen . | . . . . . . . Parts Stripped . | . . . . . . . Power Chain Reactions . | . . . . . . . Alert | -11 -10 -10 -9 -9 -9 -8 ------- Run | Yrd Mat Min Mat Min Exi Min Maximum Alert Level . | . . . . . . . Low Security (%) 100 | 100 100 100 100 100 . 100 Level 1 . | . . . . . . . Level 2 . | . . . . . . . Level 3 . | . . . . . . . Level 4 . | . . . . . . . Level 5 . | . . . . . . . High Security . | . . . . . . . Max Security . | . . . . . . . Peak Influence 140 | . . 140 117 45 . 5 Initial 54 | . . 11 54 45 . . Average 25 | . . 44 77 13 . 1 Influence Increases 268 | . 30 150 83 . . 5 Destroy 0b10 Robot/NC 5 | . . . . . . 5 Successful Hack 8 | . . . 8 . . . Partial Spotted 30 | . . . 30 . . . Lose Combat Pursuer 225 | . 30 150 45 . . . Influence Decreases 268 | . . 40 106 117 . 5 Entered New Map 177 | . . 19 86 72 . . Time Decay 91 | . . 21 20 45 . 5 Squads Dispatched 1 | . . . 1 . . . Investigation . | . . . . . . . Extermination . | . . . . . . . Reinforcement 1 | . . . 1 . . . Assault . | . . . . . . . Garrison . | . . . . . . . Intercept . | . . . . . . . Searches Triggered . | . . . . . . . Construction Impeded . | . . . . . . . Haulers Reinforced . | . . . . . . . Active Scanning Responses . | . . . . . . . Cargo Convoy Interrupts . | . . . . . . . Stealth | -11 -10 -10 -9 -9 -9 -8 --------- Run | Yrd Mat Min Mat Min Exi Min Distress Signals 2 | . . . 2 . . . Communications Jammed . | . . . . . . . Distress Signals . | . . . . . . . Times Spotted 33 | . 6 15 12 . . . Peak Tracking Total 11 | . 4 9 9 . 11 . Tactical Retreats 5 | . 1 2 1 . 1 . Traps | -11 -10 -10 -9 -9 -9 -8 ------- Run | Yrd Mat Min Mat Min Exi Min Traps Triggered 1 | . 1 . . . . . Indirectly . | . . . . . . . Trap Hack Attempts . | . . . . . . . Triggered . | . . . . . . . Disarmed . | . . . . . . . Reprogrammed . | . . . . . . . Reused . | . . . . . . . Traps Extracted . | . . . . . . . Installed . | . . . . . . . Triggered . | . . . . . . . Machines | -11 -10 -10 -9 -9 -9 -8 ---------- Run | Yrd Mat Min Mat Min Exi Min Machines Disabled 1 | . . . . . 1 . Max in Single Turn 1 | . . . . . 1 . Machines Repaired . | . . . . . . . Machines Dismantled . | . . . . . . . Machines Sabotaged . | . . . . . . . Overloaded Fab Kills . | . . . . . . . Hacking | -11 -10 -10 -9 -9 -9 -8 --------- Run | Yrd Mat Min Mat Min Exi Min Machines Accessed 1 | . . . 1 . . . Terminals 1 | . . . 1 . . . Fabricators . | . . . . . . . Repair Stations . | . . . . . . . Recycling Units . | . . . . . . . Scanalyzers . | . . . . . . . Garrison Access . | . . . . . . . Total Hacks 4 | . . . 4 . . . Successful 1 | . . . 1 . . . Failed 3 | . . . 3 . . . Catastrophic 1 | . . . 1 . . . Database Lockouts . | . . . . . . . Manual 5 | . . . 4 . 1 . Terminals 4 | . . . 4 . . . Fabricators . | . . . . . . . Repair Stations . | . . . . . . . Recycling Units . | . . . . . . . Scanalyzers . | . . . . . . . Garrison Access . | . . . . . . . Terminal Hacks 1 | . . . 1 . . . Branch Access Points 1 | . . . 1 . . . Fabricator Hacks . | . . . . . . . Repair Station Hacks . | . . . . . . . Recycling Unit Hacks . | . . . . . . . Scanalyzer . | . . . . . . . Garrison Access Hacks . | . . . . . . . Unauthorized Hacks . | . . . . . . . Terminals . | . . . . . . . Fabricators . | . . . . . . . Repair Stations . | . . . . . . . Recycling Units . | . . . . . . . Scanalyzers . | . . . . . . . Garrison Access . | . . . . . . . Data Cores Recovered . | . . . . . . . Used . | . . . . . . . Hacking Detections . | . . . . . . . Full Trace Events . | . . . . . . . Feedback Events . | . . . . . . . Feedback Blocked . | . . . . . . . Robot Schematics Acquired . | . . . . . . . Robots Built . | . . . . . . . Authchips . | . . . . . . . Time . | . . . . . . . Total Robot Build Rating . | . . . . . . . Part Schematics Acquired . | . . . . . . . Parts Built . | . . . . . . . Authchips . | . . . . . . . Time . | . . . . . . . Total Part Build Rating . | . . . . . . . Part Studies Acquired . | . . . . . . . Parts Repaired . | . . . . . . . Time . | . . . . . . . Parts Recycled . | . . . . . . . Recycled Matter . | . . . . . . . Retrieved Matter . | . . . . . . . Retrieved Components . | . . . . . . . Parts Scanalyzed . | . . . . . . . Part Schematics Acquired . | . . . . . . . Parts Damaged . | . . . . . . . Bothacking | -11 -10 -10 -9 -9 -9 -8 ------------ Run | Yrd Mat Min Mat Min Exi Min Used RIF Installer . | . . . . . . . Robots Hacked . | . . . . . . . Non-combat . | . . . . . . . Combat . | . . . . . . . Robot Hacks Applied . | . . . . . . . Relay Couplers Released . | . . . . . . . Fabnet Peak Effective % . | . . . . . . . Robots Rewired . | . . . . . . . Allies Hacked . | . . . . . . . Hacks Repelled . | . . . . . . . Allies | -11 -10 -10 -9 -9 -9 -8 -------- Run | Yrd Mat Min Mat Min Exi Min Total Allies . | . . . . . . . Largest Group . | . . . . . . . Highest-Rated Group . | . . . . . . . Highest-Rated Ally . | . . . . . . . Total Orders . | . . . . . . . Ally Attacks . | . . . . . . . Total Damage . | . . . . . . . Kills . | . . . . . . . Allies Corrupted . | . . . . . . . Allies Melted . | . . . . . . . Intel | -11 -10 -10 -9 -9 -9 -8 ------- Run | Yrd Mat Min Mat Min Exi Min Active Infowar (turns) 62 | . . . . . 41 21 T.N.C. 62 | . . . . . 41 21 Robot Analysis Total . | . . . . . . . Derelict Logs Recovered 2 | . . . . 2 . . Drone Launches . | . . . . . . . Drone Recoveries . | . . . . . . . Exploration | -11 -10 -10 -9 -9 -9 -8 ------------- Run | Yrd Mat Min Mat Min Exi Min Turns Passed 466 | 10 39 78 45 185 88 21 Spaces Moved 1163 | 20 78 183 122 494 221 45 Core 155 | 20 78 57 . . . . Treads . | . . . . . . . Legs . | . . . . . . . Wheels . | . . . . . . . Hover . | . . . . . . . Flight 1008 | . . 126 122 494 221 45 Fastest Speed 37 | 50 50 37 37 37 37 40 Average Speed 38 | 50 50 41 37 37 37 40 Slowest Speed 50 | 50 50 50 37 37 40 40 Overloaded Moves . | . . . . . . . Propulsion Burnouts . | . . . . . . . Robots Hopped 18 | . . 13 1 4 . . Potential Cave-ins . | . . . . . . . Cave-ins Triggered . | . . . . . . . Exploration Rate (%) 36 | 2 30 33 25 89 61 17 Regions Visited 6 Branch Regions 4 Pre-discovered Areas 2 | . . . . 2 . . Known Exits Taken 1 | . . . 1 . . . Unknown Exits Taken 5 | 1 1 1 . 1 1 . Scrap Searched 1 | . . . . 1 . . Spaces Dug . | . . . . . . . Terrain Destroyed . | . . . . . . . Melee . | . . . . . . . Projectile . | . . . . . . . AOE . | . . . . . . . Terrain Rammed . | . . . . . . . Walls Destroyed . | . . . . . . . Machines Disabled . | . . . . . . . Actions | -11 -10 -10 -9 -9 -9 -8 --------- Run | Yrd Mat Min Mat Min Exi Min Total 1147 | 19 77 171 120 491 223 46 Wait 1 | . . . . 1 . . Move 1127 | 19 77 162 119 485 220 45 Hop 12 | . . 7 1 4 . . Pick Up . | . . . . . . . Fast Attach 4 | . . 2 . 1 1 . Attach . | . . . . . . . Detach . | . . . . . . . Swap 1 | . . . . . 1 . Drop . | . . . . . . . Fire . | . . . . . . . Melee 2 | . . . . . 1 1 Ram . | . . . . . . . Kick . | . . . . . . . Crush . | . . . . . . . Escape Stasis . | . . . . . . . Rewire . | . . . . . . . Trap . | . . . . . . . Miscellaneous . | . . . . . . . Route ------- -11/Scrapyard -10/Materials -10/Mines -9/Materials (discovered 2 exits: *Min x2) -9/Mines (discovered 3 exits: [*Mat] / *Exi / [*Zio]) -9/Exiles -8/Mines History --------- Turn | Location | Event 3 | -11/Scrapyard | Discovered new exit (range 15) 11 | -11/Scrapyard | Entered Materials 44 | -10/Materials | Discovered new exit (range 13) 50 | -10/Materials | Entered Mines 80 | -10/Mines | Upgraded with Propulsion slot (x1) 126 | -10/Mines | Discovered new exit (range 5) 128 | -10/Mines | Entered Materials 130 | -9/Materials | Reached level 2 142 | -9/Materials | Core integrity fell below 50% 146 | -9/Materials | Identified exit to Mines 173 | -9/Materials | Entered Mines 180 | -9/Mines | A Derelict revealed a hidden shortcut to a safe place 200 | -9/Mines | Found a damaged Exp. Sensor Array with a note attached 248 | -9/Mines | Learned location of Zion (-7) 274 | -9/Mines | Discovered new exit (range 3) 293 | -9/Mines | A weapon hastily lodged in a ceiling crevice suddenly fell to the ground 320 | -9/Mines | Build established: Mutant 357 | -9/Mines | Deemed a non-threat by the Exiles lab entrance 357 | -9/Mines | Discovered new exit (range 5) 358 | -9/Mines | Entered Exiles 368 | -9/Exiles | Met 8R-AWN 374 | -9/Exiles | Met EX-HEX 385 | -9/Exiles | Met EX-BIN 390 | -9/Exiles | Aligned with FarCom system 391 | -9/Exiles | Given EX-Vault access code 399 | -9/Exiles | Opened EX-Vault 402 | -9/Exiles | Found Prototype Slashing Weapon 402 | -9/Exiles | Identified Longsword +1 405 | -9/Exiles | Found Prototype Processor 405 | -9/Exiles | Identified Modified TNC 414 | -9/Exiles | Warned to stay clear of 0b10 Research branches 426 | -9/Exiles | Met EX-DEC 427 | -9/Exiles | Attacked by the Exiles 430 | -9/Exiles | Core integrity fell below 20% 441 | -9/Exiles | Discovered new exit (range 14) 446 | -9/Exiles | Stole two prototypes: Longsword +1, Modified TNC 446 | -9/Exiles | Entered Mines 448 | -8/Mines | Reached level 3 467 | -8/Mines | Self-destructed Last Messages --------------- 00405_ Identified Modified TNC. EX-BIN: Oh yeah, I'd suggest you stay away from the 0b10 Research branches, since the FarCom signals could be picked up there, but you're welcome to try if you really want to. And if we have to leave here due to unforeseen circumstances, don't worry the FarCom system will continue to maintain contact via our distributed network. EX-DEC: Ah I see we have a visitor. One wrong move in here and I'll invert your atomic chain! 00426_ Machine disabled. 00427_ EXILES: Hostile robot within lab perimeter. Defensive protocols time, folks! 00429_ Flight Unit destroyed. 00441_ EXIT=FOUND LOCATION=UNKNOWN GOAL=ESCAPE 00448_ Reached level 3. 00457_ Sneak attack on T-07 Excavator. 00457_ T-07 Excavator destroyed. 00459_ Acquired 10 matter. Map ----- +----------------------------------------------------+ | ?????????????????????????????????????????????????? | | ?????????????????????????????????????????????????? | | ?????????????????????????????????????????????????? | | ?????????????????????????????????????????????????? | | ?????????????????????????????????????????????????? | | ??????????????????????????????????#####??????????? | | ?????????????????????????????????## #####??????? | | ????????????????????????????????## ##?????? | | ????????????????????????????????# #?????? | | ????????????????????????????????# #?????? | | ????????????????????????????????## #?????? | | ?????????????????????????????????## #?????? | | ??????????????????????????????????## ##????? | | ??????????????????????????????????## #????? | | ??????????????????###????????????## """ #####? | | ?????????????????? #???????????# """ ?? | | ??????????????????? ########???# """ #####? | | ???????????????????# ##??# #????? | | ???????????????????? """ #??## #????? | | ????????????????????# """ ????# ## #????? | | ???????????????????## """ #????# #?# #????? | | ??????????????????## #????# #??# #????? | | ??????????????????? ##???# #???# ##????? | | ????????????????????? t ????# #????###?????? | | ??????????????????????? ??????# #????????????? | | ????????????????????????#@#???????# #????????????? | | ????????????????????????# #???????# #????????????? | | ????????????????????????# #???????# #????????????? | | ????????????????????????# ######??# #????????????? | | ???????????????????????## ##?# #????????????? | | ???????????????????????# #?# #????????????? | | ???????????????????????# #?# #????????????? | | ???????????????????????# #?# #????????????? | | ???????????????????????# ### #????????????? | | ???????????????????????# | *=#????????????? | | ???????????????????????## ##########????????????? | | ????????????????????????####?????????????????????? | | ?????????????????????????????????????????????????? | | ?????????????????????????????????????????????????? | | ?????????????????????????????????????????????????? | | ?????????????????????????????????????????????????? | | ?????????????????????????????????????????????????? | | ?????????????????????????????????????????????????? | | ?????????????????????????????????????????????????? | | ?????????????????????????????????????????????????? | | ?????????????????????????????????????????????????? | | ?????????????????????????????????????????????????? | | ?????????????????????????????????????????????????? | | ?????????????????????????????????????????????????? | | ?????????????????????????????????????????????????? | +----------------------------------------------------+ Best States ------------- Heat Dissipation 25 Energy Generation 5 Energy Capacity 100 Matter Stores 151 Matter Capacity 300 Sight Range 16 Terrain Scan Density 10 Evasion (%) 62 Item Schematics ----------------- None Robot Schematics ------------------ None Fabricated ------------ Nothing Repaired ---------- Nothing Studied --------- None Alien Tech Used ----------------- None Achievements -------------- None Challenges ------------ None RPGLIKE | -11 -10 -10 -9 -9 -9 -8 --------- Run | Yrd Mat Min Mat Min Exi Min Levels Raised 2 | . . . 1 . . 1 XP Earned 6490 | 3000 . 600 1540 500 350 500 XP Spent 500 | . . 500 . . . . Upgrades 1 | . . 1 . . . . Propulsion Slot 1 | . . 1 . . . . Protomatter Created . | . . . . . . . Protomatter Decayed 23 | . . 23 . . . . Game ------ Seed SkeletonThermicMegashotty Manual? 0 Play Time 00:04:22 Cumulative 666.9 hours Start 2026.07.16 @ 07:17:06 End 2026.07.16 @ 07:24:57 Sessions 1 Manual Loads 0 Difficulty Rogue Special Mode Winter2019/RPGLIKE Game No. 303 Rogue 149 Adventurer 154 Explorer 0 Win Type - Total 22 Types 4/5/4/3/2/1/0/1/1/1 Lore% 95 Gallery% 88 Achievement% 68 Wizard Run 0 Options --------- Layout 0 ASCII 0 Keyboard 0 Movement Numpad Keybinds 0 Fullscreen 2 Font 18/SmallcapsGlow Map View 76x50 Zoom Use 0% Tactical HUD 1 Map Filters NONE Filters NONE Steam 1 RUN: 70705f2a-6214-48df-a349-570dbade9cdc